[Event "Late-Titled-Tuesday-Blitz-June-25-2024"]
[Site "Chess.com"]
[Date "2024.06.25"]
[Round "2"]
[White "DmitriiZakurdaev"]
[Black "manitodeplomo"]
[Result "1-0"]
[WhiteElo "2393"]
[BlackElo "2599"]
[TimeControl "180+1"]
[EndTime "14:18:11 PDT"]
[Termination "DmitriiZakurdaev won by resignation"]

1. d4 {[%clk 0:03:00.9]} 1... d5 {[%clk 0:02:59.5]} 2. c4 {[%clk 0:03:01.3]}
2... c6 {[%clk 0:02:59.3]} 3. Nc3 {[%clk 0:03:01.7]} 3... dxc4 {[%clk
0:02:58.9]} 4. a4 {[%clk 0:02:58]} 4... e5 {[%clk 0:02:58.6]} 5. Nf3 {[%clk
0:02:51.5]} 5... exd4 {[%clk 0:02:57.9]} 6. Qxd4 {[%clk 0:02:49.2]} 6... Qxd4
{[%clk 0:02:56.4]} 7. Nxd4 {[%clk 0:02:50.1]} 7... Bc5 {[%clk 0:02:55]} 8. e3
{[%clk 0:02:48.5]} 8... Bxd4 {[%clk 0:02:54]} 9. exd4 {[%clk 0:02:49.4]} 9...
Be6 {[%clk 0:02:54.5]} 10. Ne4 {[%clk 0:02:46.7]} 10... Na6 {[%clk 0:02:47.1]}
11. Nd6+ {[%clk 0:02:45.9]} 11... Kd7 {[%clk 0:02:38.1]} 12. Nxb7 {[%clk
0:02:45]} 12... Ne7 {[%clk 0:02:32.7]} 13. Be2 {[%clk 0:02:27.7]} 13... Nb4
{[%clk 0:02:25.7]} 14. Nc5+ {[%clk 0:02:27.3]} 14... Kc8 {[%clk 0:02:17.1]} 15.
O-O {[%clk 0:02:03.7]} 15... Nc2 {[%clk 0:02:08.2]} 16. Ra2 {[%clk 0:02:01.3]}
16... Nxd4 {[%clk 0:02:07.9]} 17. Re1 {[%clk 0:01:57.6]} 17... Nxe2+ {[%clk
0:02:02.1]} 18. Rxe2 {[%clk 0:01:58.5]} 18... Rd8 {[%clk 0:02:00.8]} 19. Re1
{[%clk 0:01:50.6]} 19... Nf5 {[%clk 0:01:57.2]} 20. Bg5 {[%clk 0:01:28.2]} 20...
Rd5 {[%clk 0:01:51]} 21. Nxe6 {[%clk 0:01:27.9]} 21... fxe6 {[%clk 0:01:50.8]}
22. Ra3 {[%clk 0:01:20.7]} 22... Rb8 {[%clk 0:01:38.1]} 23. Bc1 {[%clk
0:01:04.7]} 23... Rb3 {[%clk 0:01:32.3]} 24. Ra1 {[%clk 0:00:53.3]} 24... Nd4
{[%clk 0:01:20.5]} 25. Rb1 {[%clk 0:00:43.9]} 25... Rd3 {[%clk 0:01:16.5]} 26.
Be3 {[%clk 0:00:41.7]} 26... Kd7 {[%clk 0:00:54.4]} 27. Rbc1 {[%clk 0:00:31.2]}
27... Rb3 {[%clk 0:00:24.2]} 28. Rxc4 {[%clk 0:00:26.7]} 28... c5 {[%clk
0:00:24.3]} 29. Bc1 {[%clk 0:00:10]} 29... Rb4 {[%clk 0:00:18.3]} 30. Rxb4
{[%clk 0:00:06.8]} 30... cxb4 {[%clk 0:00:19.2]} 31. Kf1 {[%clk 0:00:07.4]}
31... Nb3 {[%clk 0:00:12.4]} 32. Be3 {[%clk 0:00:05.3]} 32... a5 {[%clk
0:00:12.5]} 33. Ke2 {[%clk 0:00:05.7]} 33... Nd4+ {[%clk 0:00:07.6]} 34. Bxd4
{[%clk 0:00:03.6]} 34... Rxd4 {[%clk 0:00:08.5]} 35. Rd1 {[%clk 0:00:04.3]}
35... Rxd1 {[%clk 0:00:07.4]} 36. Kxd1 {[%clk 0:00:05.2]} 36... Kd6 {[%clk
0:00:07.8]} 37. Kd2 {[%clk 0:00:06.1]} 37... Kd5 {[%clk 0:00:07.8]} 38. Kd3
{[%clk 0:00:06.6]} 38... h5 {[%clk 0:00:07.3]} 39. f4 {[%clk 0:00:04]} 39... e5
{[%clk 0:00:05.6]} 40. fxe5 {[%clk 0:00:04.4]} 40... Kxe5 {[%clk 0:00:06.1]} 41.
Kc4 {[%clk 0:00:05.3]} 41... Ke4 {[%clk 0:00:05.4]} 42. Kb5 {[%clk 0:00:03.8]}
42... h4 {[%clk 0:00:06.1]} 43. Kxa5 {[%clk 0:00:03.7]} 43... Ke3 {[%clk
0:00:06.7]} 44. Kxb4 {[%clk 0:00:03.6]} 44... Kf2 {[%clk 0:00:07.6]} 45. g3
{[%clk 0:00:03.6]} 45... h3 {[%clk 0:00:07.6]} 46. a5 {[%clk 0:00:03.8]} 46...
Kg2 {[%clk 0:00:08.5]} 47. a6 {[%clk 0:00:04.7]} 47... Kxh2 {[%clk 0:00:09]} 48.
a7 {[%clk 0:00:05.6]} 48... Kg1 {[%clk 0:00:09.4]} 49. a8=Q {[%clk 0:00:06.5]}
49... h2 {[%clk 0:00:10.3]} 50. Qa7+ {[%clk 0:00:02.1]} 50... Kg2 {[%clk
0:00:09.8]} 51. Qb7+ {[%clk 0:00:02.1]} 51... Kg1 {[%clk 0:00:09.9]} 52. Qb6+
{[%clk 0:00:02.7]} 52... Kg2 {[%clk 0:00:10.3]} 53. Qc6+ {[%clk 0:00:03.3]}
53... Kg1 {[%clk 0:00:10.8]} 54. Qc5+ {[%clk 0:00:03.9]} 54... Kg2 {[%clk
0:00:11.2]} 55. Qd5+ {[%clk 0:00:04.4]} 55... Kg1 {[%clk 0:00:11.5]} 56. Qd4+
{[%clk 0:00:05]} 56... Kg2 {[%clk 0:00:11.8]} 57. Qe4+ {[%clk 0:00:05.4]} 57...
Kg1 {[%clk 0:00:11.9]} 58. Qd4+ {[%clk 0:00:05.4]} 58... Kg2 {[%clk 0:00:12]}
59. Qxg7 {[%clk 0:00:05.8]} 59... h1=Q {[%clk 0:00:11.7]} 60. Qb7+ {[%clk
0:00:06.5]} 60... Kg1 {[%clk 0:00:11]} 61. Qxh1+ {[%clk 0:00:07.4]} 61... Kxh1
{[%clk 0:00:11.3]} 62. g4 {[%clk 0:00:08]} 1-0

[Event "Late-Titled-Tuesday-Blitz-June-25-2024"]
[Site "Chess.com"]
[Date "2024.06.25"]
[Round "2"]
[White "WindWhistler11"]
[Black "FLYD"]
[Result "0-1"]
[WhiteElo "2448"]
[BlackElo "2139"]
[TimeControl "180+1"]
[EndTime "14:18:11 PDT"]
[Termination "FLYD won by resignation"]

1. Nf3 {[%clk 0:02:56]} 1... Nf6 {[%clk 0:02:58.4]} 2. g3 {[%clk 0:02:55.7]}
2... d5 {[%clk 0:02:58.3]} 3. c4 {[%clk 0:02:52.1]} 3... e6 {[%clk 0:02:48.2]}
4. Bg2 {[%clk 0:02:51.8]} 4... Be7 {[%clk 0:02:48.3]} 5. b3 {[%clk 0:02:50.7]}
5... O-O {[%clk 0:02:47.5]} 6. Bb2 {[%clk 0:02:51.1]} 6... c5 {[%clk 0:02:46.7]}
7. O-O {[%clk 0:02:51]} 7... d4 {[%clk 0:02:46.9]} 8. e3 {[%clk 0:02:51.2]} 8...
Nc6 {[%clk 0:02:46.6]} 9. exd4 {[%clk 0:02:51.7]} 9... cxd4 {[%clk 0:02:47.5]}
10. Re1 {[%clk 0:02:51.9]} 10... Qc7 {[%clk 0:02:41.2]} 11. Nxd4 {[%clk
0:02:45.7]} 11... Rd8 {[%clk 0:02:38.9]} 12. Nb5 {[%clk 0:02:43.1]} 12... Qb6
{[%clk 0:02:37.1]} 13. N1c3 {[%clk 0:02:10.3]} 13... a6 {[%clk 0:02:36.4]} 14.
Na4 {[%clk 0:02:02.5]} 14... Qa5 {[%clk 0:02:36.3]} 15. Nbc3 {[%clk 0:01:48.2]}
15... Bd7 {[%clk 0:02:22.7]} 16. a3 {[%clk 0:01:47.1]} 16... b5 {[%clk 0:02:21]}
17. b4 {[%clk 0:01:46.9]} 17... Qc7 {[%clk 0:02:18.3]} 18. cxb5 {[%clk
0:01:47.2]} 18... axb5 {[%clk 0:02:14.9]} 19. Nxb5 {[%clk 0:01:47.2]} 19... Qb8
{[%clk 0:02:08.7]} 20. Nbc3 {[%clk 0:01:44.8]} 20... Be8 {[%clk 0:02:02.8]} 21.
Rb1 {[%clk 0:01:33.7]} 21... Qd6 {[%clk 0:02:00.4]} 22. Nc5 {[%clk 0:01:31]}
22... Qxd2 {[%clk 0:01:55.2]} 23. Qxd2 {[%clk 0:01:26.3]} 23... Rxd2 {[%clk
0:01:55]} 24. Nb3 {[%clk 0:01:21.3]} 24... Rdd8 {[%clk 0:01:49.6]} 25. b5 {[%clk
0:01:21.1]} 25... Rab8 {[%clk 0:01:49.4]} 26. a4 {[%clk 0:01:15.8]} 26... Nb4
{[%clk 0:01:47.1]} 27. Ba3 {[%clk 0:01:13.9]} 27... Bf8 {[%clk 0:01:42.2]} 28.
Red1 {[%clk 0:01:00.5]} 28... Nbd5 {[%clk 0:01:35.5]} 29. Nxd5 {[%clk
0:00:56.1]} 29... Nxd5 {[%clk 0:01:28.9]} 30. Bxf8 {[%clk 0:00:53.6]} 30... Kxf8
{[%clk 0:01:26.3]} 31. Bxd5 {[%clk 0:00:53.1]} 31... exd5 {[%clk 0:01:24.7]} 32.
Rd4 {[%clk 0:00:48.5]} 32... Ke7 {[%clk 0:01:22.6]} 33. Rbd1 {[%clk 0:00:48.6]}
33... Ra8 {[%clk 0:01:17.1]} 34. Nc5 {[%clk 0:00:45.5]} 34... Rac8 {[%clk
0:00:57.5]} 35. Rxd5 {[%clk 0:00:40]} 35... Rxd5 {[%clk 0:00:55.7]} 36. Rxd5
{[%clk 0:00:40.9]} 36... f6 {[%clk 0:00:49.5]} 37. f4 {[%clk 0:00:38.9]} 37...
Bf7 {[%clk 0:00:47.8]} 38. Rd7+ {[%clk 0:00:23.1]} 38... Ke8 {[%clk 0:00:47.8]}
39. Rxf7 {[%clk 0:00:17.5]} 39... Kxf7 {[%clk 0:00:46.3]} 40. Nb7 {[%clk
0:00:18.4]} 40... Rc1+ {[%clk 0:00:42.5]} 41. Kg2 {[%clk 0:00:18.2]} 41... Ke7
{[%clk 0:00:41.4]} 42. a5 {[%clk 0:00:16.7]} 42... Kd7 {[%clk 0:00:38.7]} 43. a6
{[%clk 0:00:13.7]} 43... Kc7 {[%clk 0:00:33.1]} 44. Na5 {[%clk 0:00:12.7]} 44...
Kb6 {[%clk 0:00:25.2]} 45. Nc6 {[%clk 0:00:08.7]} 45... Kxb5 {[%clk 0:00:22.2]}
46. Nd4+ {[%clk 0:00:06.2]} 46... Kxa6 {[%clk 0:00:20.6]} 47. Ne6 {[%clk
0:00:07.1]} 47... Rc2+ {[%clk 0:00:19.4]} 48. Kh3 {[%clk 0:00:07]} 48... g6
{[%clk 0:00:20]} 49. Nf8 {[%clk 0:00:07]} 49... Rc7 {[%clk 0:00:18.4]} 50. Ne6
{[%clk 0:00:07.1]} 50... Re7 {[%clk 0:00:16.9]} 51. Nd4 {[%clk 0:00:06.6]} 51...
Kb6 {[%clk 0:00:16.6]} 52. Kg4 {[%clk 0:00:06.5]} 52... Kc5 {[%clk 0:00:16.3]}
53. Nb3+ {[%clk 0:00:06.5]} 53... Kd5 {[%clk 0:00:16]} 54. h4 {[%clk 0:00:06.8]}
54... h5+ {[%clk 0:00:16.2]} 55. Kf3 {[%clk 0:00:06.6]} 55... Rc7 {[%clk
0:00:12.6]} 56. Nd2 {[%clk 0:00:04.8]} 56... Rc3+ {[%clk 0:00:11.3]} 57. Ke2
{[%clk 0:00:04.4]} 57... Rxg3 {[%clk 0:00:10.9]} 0-1

[Event "Late-Titled-Tuesday-Blitz-June-25-2024"]
[Site "Chess.com"]
[Date "2024.06.25"]
[Round "2"]
[White "klercaku"]
[Black "Crasyhealer"]
[Result "1-0"]
[WhiteElo "2310"]
[BlackElo "2500"]
[TimeControl "180+1"]
[EndTime "14:18:12 PDT"]
[Termination "klercaku won by resignation"]

1. e4 {[%clk 0:03:00.9]} 1... e5 {[%clk 0:02:53.5]} 2. Nf3 {[%clk 0:03:00.7]}
2... Nc6 {[%clk 0:02:52.8]} 3. d4 {[%clk 0:03:01]} 3... exd4 {[%clk 0:02:52.6]}
4. Nxd4 {[%clk 0:03:01.8]} 4... Nf6 {[%clk 0:02:52.7]} 5. Nc3 {[%clk 0:03:01.8]}
5... Bb4 {[%clk 0:02:52.9]} 6. Nxc6 {[%clk 0:03:01.6]} 6... bxc6 {[%clk
0:02:47.2]} 7. Bd3 {[%clk 0:03:01.7]} 7... d5 {[%clk 0:02:44.7]} 8. exd5 {[%clk
0:03:02.6]} 8... cxd5 {[%clk 0:02:44.8]} 9. O-O {[%clk 0:03:03.1]} 9... O-O
{[%clk 0:02:44.3]} 10. Bg5 {[%clk 0:03:03.4]} 10... c6 {[%clk 0:02:42.1]} 11.
Qf3 {[%clk 0:03:03.8]} 11... Be7 {[%clk 0:02:41.6]} 12. h3 {[%clk 0:03:03.8]}
12... h6 {[%clk 0:02:40.4]} 13. Bf4 {[%clk 0:03:03.7]} 13... Bd6 {[%clk
0:02:34.6]} 14. a3 {[%clk 0:03:01.5]} 14... Rb8 {[%clk 0:02:29.5]} 15. b4 {[%clk
0:02:57.9]} 15... Be6 {[%clk 0:02:28.4]} 16. Na4 {[%clk 0:02:54.9]} 16... a5
{[%clk 0:02:24]} 17. c3 {[%clk 0:02:50]} 17... d4 {[%clk 0:02:04.1]} 18. cxd4
{[%clk 0:02:23.3]} 18... axb4 {[%clk 0:01:53.3]} 19. Nc5 {[%clk 0:02:18.5]}
19... Bd5 {[%clk 0:01:51.9]} 20. Qg3 {[%clk 0:02:11.3]} 20... Nh5 {[%clk
0:01:51.8]} 21. Qg4 {[%clk 0:01:53.6]} 21... Nxf4 {[%clk 0:01:49.8]} 22. Bc2
{[%clk 0:01:44]} 22... Bxc5 {[%clk 0:01:38.6]} 23. dxc5 {[%clk 0:01:39.9]} 23...
Qf6 {[%clk 0:01:38.4]} 24. axb4 {[%clk 0:01:34]} 24... Rxb4 {[%clk 0:01:37.8]}
25. Rab1 {[%clk 0:01:26.6]} 25... h5 {[%clk 0:01:27.9]} 26. Qd1 {[%clk
0:01:12.3]} 26... Nxh3+ {[%clk 0:01:25.4]} 27. Kh2 {[%clk 0:01:00]} 27... Nxf2
{[%clk 0:01:19.8]} 28. Rxb4 {[%clk 0:00:48.8]} 28... Qe5+ {[%clk 0:01:19.6]} 29.
Kg1 {[%clk 0:00:41.7]} 29... Nxd1 {[%clk 0:01:11.6]} 30. Bxd1 {[%clk 0:00:41.5]}
30... Qe3+ {[%clk 0:01:10.3]} 31. Kh2 {[%clk 0:00:39.6]} 31... Qxc5 {[%clk
0:01:08.8]} 32. Rbf4 {[%clk 0:00:38.8]} 32... Qd6 {[%clk 0:01:07.6]} 33. Kg1
{[%clk 0:00:37.5]} 33... g6 {[%clk 0:01:06.1]} 34. Rf6 {[%clk 0:00:37.4]} 34...
Qc5+ {[%clk 0:01:06.6]} 35. Kh2 {[%clk 0:00:36.7]} 35... Re8 {[%clk 0:01:07.1]}
36. R1f2 {[%clk 0:00:25.6]} 36... Qd4 {[%clk 0:01:01.9]} 37. Bc2 {[%clk
0:00:19.9]} 37... Qh4+ {[%clk 0:01:00.8]} 38. Kg1 {[%clk 0:00:18.2]} 38... Re1+
{[%clk 0:01:00]} 39. Rf1 {[%clk 0:00:18.3]} 39... Qxf6 {[%clk 0:00:59.9]} 40.
Rxe1 {[%clk 0:00:18]} 40... Qb2 {[%clk 0:01:00.2]} 41. Bd1 {[%clk 0:00:15.5]}
41... Qf2+ {[%clk 0:01:00.3]} 42. Kxf2 {[%clk 0:00:14.5]} 42... Kg7 {[%clk
0:01:00.3]} 43. Re8 {[%clk 0:00:14.6]} 43... c5 {[%clk 0:00:59]} 44. Rc8 {[%clk
0:00:14.7]} 44... c4 {[%clk 0:00:58.6]} 45. Be2 {[%clk 0:00:15.2]} 45... Be6
{[%clk 0:00:57.5]} 46. Rc7 {[%clk 0:00:15.6]} 46... h4 {[%clk 0:00:50.6]} 47.
Bxc4 {[%clk 0:00:15.2]} 47... Bxc4 {[%clk 0:00:51.5]} 48. Rxc4 {[%clk
0:00:15.5]} 48... g5 {[%clk 0:00:52.4]} 49. Rc5 {[%clk 0:00:13.5]} 49... Kg6
{[%clk 0:00:52.5]} 50. Kf3 {[%clk 0:00:13.2]} 50... f5 {[%clk 0:00:51.1]} 51.
Rc6+ {[%clk 0:00:12.4]} 51... Kh5 {[%clk 0:00:51.1]} 52. Rc8 {[%clk 0:00:13]}
52... Kg6 {[%clk 0:00:46]} 53. Rg8+ {[%clk 0:00:09.8]} 53... Kf6 {[%clk
0:00:46.1]} 54. Rf8+ {[%clk 0:00:09.4]} 54... Ke5 {[%clk 0:00:46.6]} 55. Re8+
{[%clk 0:00:09]} 55... Kf6 {[%clk 0:00:46.7]} 56. Rh8 {[%clk 0:00:08.9]} 56...
Kg7 {[%clk 0:00:46.5]} 57. Rh5 {[%clk 0:00:09.1]} 57... Kg6 {[%clk 0:00:46.9]}
58. Rh8 {[%clk 0:00:09.7]} 58... Kg7 {[%clk 0:00:47.3]} 59. Rb8 {[%clk
0:00:10.4]} 59... Kf6 {[%clk 0:00:47.8]} 60. g3 {[%clk 0:00:10.1]} 60... h3
{[%clk 0:00:45.3]} 61. g4 {[%clk 0:00:09.1]} 61... f4 {[%clk 0:00:41.8]} 62. Rh8
{[%clk 0:00:09.2]} 62... Kg6 {[%clk 0:00:41.5]} 63. Rxh3 {[%clk 0:00:08.3]}
63... Kf6 {[%clk 0:00:42.4]} 64. Ke4 {[%clk 0:00:08.8]} 64... Ke6 {[%clk
0:00:42.9]} 65. Rh6+ {[%clk 0:00:08.7]} 65... Kf7 {[%clk 0:00:43.4]} 66. Kf5
{[%clk 0:00:07.6]} 66... f3 {[%clk 0:00:44.1]} 67. Kxg5 {[%clk 0:00:06.9]} 67...
Kg7 {[%clk 0:00:44.8]} 68. Rf6 {[%clk 0:00:06.9]} 68... f2 {[%clk 0:00:45.7]}
69. Rxf2 {[%clk 0:00:07.3]} 69... Kh7 {[%clk 0:00:46.6]} 70. Ra2 {[%clk
0:00:06.9]} 70... Kg7 {[%clk 0:00:47.5]} 71. Ra7+ {[%clk 0:00:05.7]} 1-0

[Event "Late-Titled-Tuesday-Blitz-June-25-2024"]
[Site "Chess.com"]
[Date "2024.06.25"]
[Round "2"]
[White "imdarealist"]
[Black "sammartin99"]
[Result "0-1"]
[WhiteElo "2276"]
[BlackElo "2508"]
[TimeControl "180+1"]
[EndTime "14:18:12 PDT"]
[Termination "sammartin99 won on time"]

1. d4 {[%clk 0:02:58.7]} 1... d5 {[%clk 0:02:59.7]} 2. Bf4 {[%clk 0:02:58.2]}
2... c5 {[%clk 0:02:59.1]} 3. e3 {[%clk 0:02:58.1]} 3... cxd4 {[%clk 0:02:59.2]}
4. exd4 {[%clk 0:02:58.1]} 4... Nf6 {[%clk 0:02:59.9]} 5. c3 {[%clk 0:02:57.3]}
5... Bg4 {[%clk 0:02:58.4]} 6. Qb3 {[%clk 0:02:56.8]} 6... Qc8 {[%clk
0:02:58.8]} 7. Nd2 {[%clk 0:02:54.4]} 7... Nc6 {[%clk 0:02:58.9]} 8. Ngf3 {[%clk
0:02:52.6]} 8... e6 {[%clk 0:02:59.3]} 9. h3 {[%clk 0:02:52.5]} 9... Bh5 {[%clk
0:02:59.2]} 10. Ne5 {[%clk 0:02:50.2]} 10... Nxe5 {[%clk 0:02:56.7]} 11. Bxe5
{[%clk 0:02:45.1]} 11... Nd7 {[%clk 0:02:54.6]} 12. Bd3 {[%clk 0:02:34.6]} 12...
Nxe5 {[%clk 0:02:51.3]} 13. dxe5 {[%clk 0:02:35.5]} 13... a6 {[%clk 0:02:49.4]}
14. O-O {[%clk 0:02:13.4]} 14... Be7 {[%clk 0:02:49]} 15. Rae1 {[%clk
0:02:09.2]} 15... Bg6 {[%clk 0:02:47.5]} 16. Bxg6 {[%clk 0:02:06.4]} 16... hxg6
{[%clk 0:02:48.4]} 17. Nf3 {[%clk 0:02:04.5]} 17... b5 {[%clk 0:02:41.9]} 18.
Nd4 {[%clk 0:02:04.2]} 18... Qc4 {[%clk 0:02:37.6]} 19. Re3 {[%clk 0:01:47.8]}
19... Rc8 {[%clk 0:02:30.5]} 20. Rd1 {[%clk 0:01:45.4]} 20... O-O {[%clk
0:02:27.7]} 21. Rg3 {[%clk 0:01:40.5]} 21... b4 {[%clk 0:02:16.5]} 22. cxb4
{[%clk 0:01:36.2]} 22... Qxb4 {[%clk 0:02:13.7]} 23. Qxb4 {[%clk 0:01:15]} 23...
Bxb4 {[%clk 0:02:14.6]} 24. Rb3 {[%clk 0:01:15]} 24... Bc5 {[%clk 0:02:01.3]}
25. Nf3 {[%clk 0:01:10.8]} 25... Rb8 {[%clk 0:01:48.4]} 26. Rdd3 {[%clk
0:01:10.4]} 26... a5 {[%clk 0:01:41.9]} 27. Kf1 {[%clk 0:01:03.2]} 27... a4
{[%clk 0:01:39.2]} 28. Rxb8 {[%clk 0:01:03.1]} 28... Rxb8 {[%clk 0:01:40.1]} 29.
Rd2 {[%clk 0:00:55.9]} 29... f6 {[%clk 0:01:05.2]} 30. Rc2 {[%clk 0:00:54.4]}
30... Bb6 {[%clk 0:01:01.6]} 31. Rc6 {[%clk 0:00:34.7]} 31... Kf7 {[%clk
0:01:01.1]} 32. Rc2 {[%clk 0:00:29.9]} 32... Ke7 {[%clk 0:01:00.1]} 33. Ke2
{[%clk 0:00:29.2]} 33... g5 {[%clk 0:00:59.9]} 34. Kd3 {[%clk 0:00:28.4]} 34...
Kd7 {[%clk 0:01:00]} 35. Ke2 {[%clk 0:00:17.8]} 35... Ba7 {[%clk 0:00:59.9]} 36.
Kd3 {[%clk 0:00:17.1]} 36... Rb4 {[%clk 0:00:59.9]} 37. exf6 {[%clk 0:00:16.3]}
37... gxf6 {[%clk 0:01:00]} 38. Ke2 {[%clk 0:00:16.6]} 38... Re4+ {[%clk
0:00:59.5]} 39. Kf1 {[%clk 0:00:17]} 39... e5 {[%clk 0:00:58.4]} 40. Nd2 {[%clk
0:00:16]} 40... Rb4 {[%clk 0:00:57]} 41. b3 {[%clk 0:00:15.4]} 41... Rf4 {[%clk
0:00:54.7]} 42. Nb1 {[%clk 0:00:14.5]} 42... axb3 {[%clk 0:00:54.4]} 43. axb3
{[%clk 0:00:14.3]} 43... Rb4 {[%clk 0:00:55.2]} 44. Nd2 {[%clk 0:00:14.7]} 44...
Kd6 {[%clk 0:00:54.9]} 45. Ke2 {[%clk 0:00:15]} 45... Bd4 {[%clk 0:00:54.1]} 46.
Rc8 {[%clk 0:00:13.7]} 46... Bb6 {[%clk 0:00:50.7]} 47. Rb8 {[%clk 0:00:11.8]}
47... Ba5 {[%clk 0:00:46.6]} 48. Rf8 {[%clk 0:00:07.7]} 48... Ke7 {[%clk
0:00:46.2]} 49. Ra8 {[%clk 0:00:07.1]} 49... Bc7 {[%clk 0:00:44.1]} 50. Ra7
{[%clk 0:00:07]} 50... Kd6 {[%clk 0:00:44.3]} 51. Ra6+ {[%clk 0:00:07.1]} 51...
Bb6 {[%clk 0:00:43.4]} 52. f3 {[%clk 0:00:05.7]} 52... Kc7 {[%clk 0:00:35.8]}
53. Kd3 {[%clk 0:00:05.9]} 53... Rd4+ {[%clk 0:00:35.2]} 54. Kc2 {[%clk
0:00:05.8]} 54... e4 {[%clk 0:00:31.5]} 55. fxe4 {[%clk 0:00:04.4]} 55... dxe4
{[%clk 0:00:32.4]} 56. Nc4 {[%clk 0:00:03.8]} 56... e3 {[%clk 0:00:14.7]} 57.
Rxb6 {[%clk 0:00:03.6]} 57... Kd7 {[%clk 0:00:09.5]} 58. Rxf6 {[%clk 0:00:02.2]}
58... e2 {[%clk 0:00:10.1]} 59. Re6 {[%clk 0:00:01.2]} 59... Kxe6 {[%clk
0:00:08.6]} 0-1

[Event "Late-Titled-Tuesday-Blitz-June-25-2024"]
[Site "Chess.com"]
[Date "2024.06.25"]
[Round "2"]
[White "boguszp"]
[Black "jaramsdal"]
[Result "0-1"]
[WhiteElo "1981"]
[BlackElo "2440"]
[TimeControl "180+1"]
[EndTime "14:18:12 PDT"]
[Termination "jaramsdal won by checkmate"]

1. d4 {[%clk 0:03:00.9]} 1... d5 {[%clk 0:02:41.7]} 2. Nf3 {[%clk 0:02:59.7]}
2... Bg4 {[%clk 0:02:34.2]} 3. Ne5 {[%clk 0:02:58.2]} 3... Bf5 {[%clk
0:02:33.3]} 4. c4 {[%clk 0:02:56.6]} 4... e6 {[%clk 0:02:30.7]} 5. Qb3 {[%clk
0:02:46.7]} 5... Nc6 {[%clk 0:02:18.4]} 6. e3 {[%clk 0:02:17.3]} 6... Nxe5
{[%clk 0:02:16.6]} 7. dxe5 {[%clk 0:02:16]} 7... Ne7 {[%clk 0:01:50.2]} 8. Nc3
{[%clk 0:02:07.5]} 8... d4 {[%clk 0:01:23.4]} 9. Nb5 {[%clk 0:01:49.6]} 9... d3
{[%clk 0:01:15.5]} 10. Nd4 {[%clk 0:01:43.6]} 10... Be4 {[%clk 0:01:12]} 11.
Bxd3 {[%clk 0:01:33.9]} 11... Bxg2 {[%clk 0:01:09]} 12. Rg1 {[%clk 0:01:32.3]}
12... Bc6 {[%clk 0:01:08.9]} 13. Bd2 {[%clk 0:01:26.4]} 13... Ng6 {[%clk
0:01:02.4]} 14. Bxg6 {[%clk 0:01:24.2]} 14... hxg6 {[%clk 0:00:48.1]} 15. O-O-O
{[%clk 0:01:22]} 15... Qe7 {[%clk 0:00:30.2]} 16. Nxc6 {[%clk 0:01:06.7]} 16...
bxc6 {[%clk 0:00:31.1]} 17. Qb7 {[%clk 0:01:03.8]} 17... Rd8 {[%clk 0:00:31.3]}
18. Qxc6+ {[%clk 0:01:02.7]} 18... Qd7 {[%clk 0:00:31.1]} 19. Qxd7+ {[%clk
0:00:59.4]} 19... Rxd7 {[%clk 0:00:32]} 20. Rh1 {[%clk 0:00:48.3]} 20... Be7
{[%clk 0:00:31.2]} 21. Bc3 {[%clk 0:00:46.6]} 21... Rh3 {[%clk 0:00:25.6]} 22.
Rxd7 {[%clk 0:00:44]} 22... Kxd7 {[%clk 0:00:26.5]} 23. Kd2 {[%clk 0:00:43.4]}
23... Kc6 {[%clk 0:00:24.5]} 24. b4 {[%clk 0:00:40.3]} 24... a6 {[%clk
0:00:22.8]} 25. Ke2 {[%clk 0:00:38.2]} 25... Rh4 {[%clk 0:00:22]} 26. f4 {[%clk
0:00:36.6]} 26... g5 {[%clk 0:00:21.4]} 27. Kf3 {[%clk 0:00:34]} 27... Rh3+
{[%clk 0:00:20]} 28. Kf2 {[%clk 0:00:33.1]} 28... gxf4 {[%clk 0:00:19.9]} 29.
exf4 {[%clk 0:00:32.9]} 29... Rxc3 {[%clk 0:00:19.3]} 30. b5+ {[%clk 0:00:28.1]}
30... axb5 {[%clk 0:00:20.2]} 31. cxb5+ {[%clk 0:00:28.2]} 31... Kxb5 {[%clk
0:00:21.1]} 32. Rg1 {[%clk 0:00:25.9]} 32... Rc2+ {[%clk 0:00:20]} 33. Kf3
{[%clk 0:00:23.1]} 33... g6 {[%clk 0:00:20.4]} 34. Rg2 {[%clk 0:00:19.1]} 34...
Rxg2 {[%clk 0:00:18.4]} 35. Kxg2 {[%clk 0:00:18.7]} 35... c5 {[%clk 0:00:19]}
36. Kf3 {[%clk 0:00:18.8]} 36... c4 {[%clk 0:00:19.4]} 37. Ke3 {[%clk
0:00:18.8]} 37... Bb4 {[%clk 0:00:18.8]} 38. h4 {[%clk 0:00:16.9]} 38... Ka4
{[%clk 0:00:18.2]} 39. Kd4 {[%clk 0:00:14.3]} 39... Kb5 {[%clk 0:00:16.6]} 40.
a4+ {[%clk 0:00:13.1]} 40... Kxa4 {[%clk 0:00:15.9]} 41. Kxc4 {[%clk 0:00:13.7]}
41... Be1 {[%clk 0:00:16.4]} 42. Kc5 {[%clk 0:00:12.5]} 42... Bxh4 {[%clk
0:00:14.1]} 43. Kd6 {[%clk 0:00:12.2]} 43... Bg3 {[%clk 0:00:14.4]} 44. Ke7
{[%clk 0:00:11.7]} 44... Bxf4 {[%clk 0:00:14.3]} 45. Kxf7 {[%clk 0:00:12.4]}
45... Bxe5 {[%clk 0:00:12.5]} 46. Kxg6 {[%clk 0:00:10.8]} 46... Ba1 {[%clk
0:00:11.2]} 47. Kg5 {[%clk 0:00:09.9]} 47... e5 {[%clk 0:00:12.1]} 48. Kf5
{[%clk 0:00:09.8]} 48... Kb3 {[%clk 0:00:13]} 49. Ke4 {[%clk 0:00:09.8]} 49...
Kc4 {[%clk 0:00:13.9]} 50. Ke3 {[%clk 0:00:09.5]} 50... Kd5 {[%clk 0:00:14.8]}
51. Kd3 {[%clk 0:00:09.4]} 51... Bd4 {[%clk 0:00:14.9]} 52. Ke2 {[%clk
0:00:08.5]} 52... Ba7 {[%clk 0:00:15.8]} 53. Kd3 {[%clk 0:00:07.5]} 53... Ke6
{[%clk 0:00:16.7]} 54. Ke4 {[%clk 0:00:07.5]} 54... Kf6 {[%clk 0:00:17.2]} 55.
Kf3 {[%clk 0:00:06.8]} 55... Kf5 {[%clk 0:00:18.1]} 56. Ke2 {[%clk 0:00:06.8]}
56... e4 {[%clk 0:00:19]} 57. Kd2 {[%clk 0:00:05.6]} 57... Kf4 {[%clk
0:00:19.9]} 58. Ke2 {[%clk 0:00:05.8]} 58... Kg3 {[%clk 0:00:20.4]} 59. Kf1
{[%clk 0:00:04.6]} 59... Kf3 {[%clk 0:00:21.3]} 60. Ke1 {[%clk 0:00:04.6]} 60...
Bf2+ {[%clk 0:00:20.8]} 61. Kf1 {[%clk 0:00:04.2]} 61... Bg3 {[%clk 0:00:21.7]}
62. Kg1 {[%clk 0:00:03.9]} 62... e3 {[%clk 0:00:22.1]} 63. Kh1 {[%clk
0:00:02.2]} 63... e2 {[%clk 0:00:22.5]} 64. Kg1 {[%clk 0:00:02.8]} 64... e1=R#
{[%clk 0:00:22.3]} 0-1